bitfinex/quotes_ETHUSD_20250608
["timestamp","ask_amount","ask_price","bid_price","bid_amount"]
[1749350162323,19.5615,2517.9,2517.8,10.38572134]
[1749350163726,18.811,2517.9,2517.8,10.38572134]
[1749350163926,18.811,2517.9,2517.8,14.00062983]
[1749350166226,18.811,2517.9,2517.8,10.38572134]
[1749350168466,18.811,2517.9,2517.8,14.00062983]
[1749350169032,18.811,2517.9,2517.8,3.97172134]
[1749350169231,18.811,2517.9,2517.8,10.37972134]
[1749350169841,1.637,2517.9,2517.8,10.37972134]
[1749350174946,1.637,2517.9,2517.8,3.97172134]
[1749350175254,1.637,2517.9,2517.8,10.37972134]
[1749350177640,2.58680605,2517.9,2517.8,10.37972134]
[1749350181409,2.58680605,2517.9,2517.6,5.11899842]
[1749350181574,0.94980605,2517.8,2517.7,6.408]
[1749350181765,0.94980605,2517.8,2517.7,10.37987909]
[1749350185184,0.94980605,2517.8,2517.7,3.97187909]
[1749350185391,0.94980605,2517.8,2517.7,6.408]
[1749350185589,0.94980605,2517.8,2517.7,10.37987909]
[1749350187608,1.637,2517.8,2517.7,10.37987909]
[1749350187809,2.58669006,2517.8,2517.7,10.37987909]
[1749350189376,3.33849006,2517.8,2517.7,3.97187909]
[1749350189580,3.33849006,2517.8,2517.6,4.37102604]
[1749350189581,3.33849006,2517.8,2517.6,10.78094972]
[1749350189895,0.94969006,2517.7,2517.6,10.78094972]
[1749350194416,0.94969006,2517.7,2517.6,4.37094972]
[1749350194723,0.94969006,2517.7,2517.6,10.77994972]
[1749350200223,0.94969006,2517.7,2517.6,14.39485821]
[1749350200427,2.58669006,2517.7,2517.6,14.39485821]
[1749350200926,1.637,2517.7,2517.6,14.39485821]
[1749350201425,2.5853627,2517.7,2517.6,14.39485821]
[1749350202121,1.637,2517.7,2517.6,14.39485821]
[1749350202703,2.58505252,2517.7,2517.6,10.77994972]
[1749350203422,2.58505252,2517.7,2517.6,10.77894972]
[1749350203625,2.58505252,2517.7,2517.6,4.37094972]
[1749350203791,2.58505252,2517.7,2517.6,10.77894972]
[1749350203991,2.58476466,2517.7,2517.6,10.77894972]
[1749350210921,0.7518,2517.6,2517.5,3.97212197]
[1749350211102,1.69956466,2517.6,2517.5,10.38012197]
[1749350213929,1.69956466,2517.6,2517.5,10.77747401]
[1749350216757,1.69956466,2517.6,2517.5,10.38012197]
[1749350216959,3.33639753,2517.6,2517.0,3.97298371]
[1749350217123,1.18534338,2517.4,2516.8,0.8043]
[1749350217330,0.7758,2517.1,2516.8,4.3763101]
[1749350217539,2.58476466,2517.0,2516.8,0.40308222]
[1749350217860,0.94776466,2516.9,2516.6,6.408]
[1749350218044,1.72356466,2516.8,2516.6,3.97360233]
[1749350218246,0.94776466,2516.7,2516.6,10.38160233]
[1749350218566,1.637,2516.7,2516.6,27.59220348]
[1749350221627,0.94604361,2517.2,2517.1,3.97282587]
[1749350221826,2.58304361,2517.2,2517.1,3.97282587]
[1749350222357,0.94604361,2517.2,2517.1,3.97282587]
[1749350222569,2.58304361,2517.2,2517.1,3.97282587]
[1749350222747,1.637,2517.2,2517.1,3.97282587]
[1749350232691,17.171,2517.4,2517.3,3.97251022]
[1749350232889,19.75394406,2517.4,2517.3,3.97251022]
[1749350233571,19.75394406,2517.4,2517.3,10.38151022]
[1749350233772,18.808,2517.4,2517.3,10.38151022]
[1749350236823,18.808,2517.4,2517.3,3.97251022]
[1749350237031,18.808,2517.4,2517.3,10.38151022]
[1749350237513,20.53024941,2517.4,2517.3,10.38151022]
[1749350237719,20.53024941,2517.4,2517.3,10.38351022]
[1749350239398,19.75444941,2517.4,2517.3,10.38351022]
[1749350243134,19.75444941,2517.4,2517.3,3.97251022]
[1749350243338,19.75444941,2517.4,2517.3,10.38151022]
[1749350246403,2.58344941,2517.4,2517.3,10.38151022]
[1749350248199,0.94644941,2517.4,2517.3,11.17561022]
[1749350248406,2.58344941,2517.4,2517.3,11.17561022]
[1749350248909,1.637,2517.4,2517.3,27.17561022]
[1749350249419,1.637,2517.4,2517.3,31.89561022]
[1749350251110,1.637,2517.4,2517.3,31.89661022]
[1749350251328,1.637,2517.4,2517.3,25.48661022]
[1749350251535,1.637,2517.4,2517.3,31.89661022]
[1749350252350,1.637,2517.4,2517.3,27.72661022]
[1749350258430,1.637,2517.4,2517.3,32.44661022]
[1749350267352,1.637,2517.4,2517.3,26.03661022]
[1749350267553,1.637,2517.4,2517.3,32.44561022]
[1749350278605,1.637,2517.4,2517.3,31.64951022]
[1749350281586,1.637,2517.4,2517.3,25.24251022]
[1749350281888,0.7836,2517.8,2517.7,19.97187909]
[1749350282187,3.37136676,2517.8,2517.7,26.37887909]
[1749350285311,3.37136676,2517.8,2517.7,19.97187909]
[1749350285447,0.7836,2517.7,2517.6,3.97203686]
[1749350285653,1.73236676,2517.7,2517.6,10.38003686]
[1749350286892,1.73236676,2517.7,2517.6,3.97203686]
[1749350292775,1.73236676,2517.7,2517.5,3.97216423]
[1749350292975,2.22170459,2517.6,2517.5,3.97216423]
[1749350297874,2.22128081,2517.6,2517.5,3.97216423]
[1749350298079,2.22128081,2517.6,2517.2,19.97258501]
[1749350298274,0.7836,2517.4,2516.7,8.69337597]
[1749350298478,0.7836,2517.2,2516.7,8.693403]
[1749350298705,3.37053831,2517.1,2517.0,3.97298371]
[1749350298891,3.37053408,2517.1,2517.0,3.97298371]
[1749350300396,2.4226,2517.1,2517.0,3.97298371]
[1749350305535,2.4226,2517.1,2516.8,3.97314545]
[1749350305689,0.7836,2517.0,2516.9,3.97308835]
[1749350306119,1.73045572,2517.0,2516.9,3.97308835]
[1749350306329,0.7836,2517.0,2516.9,3.97308835]
[1749350307890,1.73044342,2517.0,2516.9,3.97308835]
[1749350309822,1.73044342,2517.0,2516.7,3.97338574]
[1749350309823,3.78458776,2517.0,2516.7,3.97338574]
[1749350310000,0.94684342,2516.9,2516.7,3.97338574]
[1749350310321,0.94671242,2516.8,2516.6,4.36239213]
[1749350310528,0.7732,2516.9,2516.6,16.0]
[1749350310693,0.7732,2516.9,2516.7,3.97345234]
[1749350311024,1.22927215,2516.8,2516.7,3.97345234]
[1749350311628,1.22924444,2516.8,2516.7,3.97345234]
[1749350312332,0.28273443,2516.8,2516.7,3.97345234]
[1749350312507,1.22924066,2516.8,2516.7,3.97345234]
[1749350313331,1.22926615,2516.8,2516.7,3.97345234]
[1749350313506,1.22934092,2516.8,2516.7,3.97345234]
[1749350314129,0.28273443,2516.8,2516.7,3.97345234]
[1749350314333,1.22931051,2516.8,2516.7,3.97345234]
[1749350317950,1.22931051,2516.8,2516.7,3.9734573]
[1749350320513,0.94657608,2516.8,2516.7,3.9734573]
[1749350323943,0.7732,2516.9,2516.7,3.9734573]
[1749350324261,0.94747941,2516.8,2516.7,3.9734573]
[1749350330770,18.12247941,2516.8,2516.7,3.9734573]
[1749350331469,19.30682867,2516.8,2516.7,3.9734573]
[1749350331833,18.12247941,2516.8,2516.7,3.9734573]
[1749350332248,19.30682867,2516.8,2516.7,3.9734573]
[1749350333376,21.67808997,2516.8,2515.9,0.55]
[1749350333552,5.15815011,2516.5,2516.0,3.97448851]
[1749350333870,1.18434926,2516.3,2515.9,3.97464687]
[1749350334049,2.13182867,2516.2,2515.9,3.97464687]
[1749350334253,0.94747941,2516.1,2515.9,3.97464687]
[1749350334462,0.94747941,2516.0,2515.9,3.97472077]
[1749350336571,2.58447941,2516.0,2515.9,3.97472077]
[1749350336773,1.637,2516.0,2515.9,4.72802077]
[1749350339444,1.18434926,2516.5,2516.3,3.97400483]
[1749350339644,2.58460912,2516.4,2516.3,3.97400483]
[1749350340081,3.76895838,2516.4,2516.3,3.97400483]
[1749350340653,2.58460912,2516.4,2516.3,3.97400483]
[1749350341961,3.19507896,2516.4,2516.2,3.97419273]
[1749350342278,0.94760912,2516.3,2516.2,3.97419273]
[1749350346383,2.58560912,2516.3,2516.2,3.97419273]
[1749350347782,0.94760912,2516.3,2516.2,3.97419273]
[1749350347985,1.638,2516.3,2516.2,20.79309273]
[1749350357862,0.94758254,2516.7,2516.6,3.97361519]
[1749350358104,1.637,2516.7,2516.6,14.81842368]
[1749350358272,1.637,2516.7,2516.6,11.20351519]
[1749350358477,2.584485,2516.7,2516.6,10.38461519]
[1749350363274,1.637,2516.7,2516.6,10.38461519]
[1749350364190,18.36034926,2517.1,2517.0,3.97298371]
[1749350364406,20.94520697,2517.1,2517.0,3.97298371]
[1749350365371,19.76085771,2517.1,2517.0,3.97298371]
[1749350365588,20.94520697,2517.1,2517.0,3.97298371]
[1749350366367,21.31550899,2517.1,2517.0,3.97298371]
[1749350366573,20.13115442,2517.1,2517.0,3.97298371]
[1749350366787,23.50468908,2517.1,2516.9,10.38412666]
[1749350366987,2.50318859,2517.0,2516.9,10.38412666]
[1749350367188,2.13288761,2517.0,2516.9,10.38412666]
[1749350367486,2.50318701,2517.0,2516.9,10.38412666]
[1749350367709,2.13288761,2517.0,2516.9,10.38412666]
[1749350368119,2.50325627,2517.0,2516.9,10.38412666]
[1749350368338,2.13288761,2517.0,2516.9,10.38412666]
[1749350368620,2.50325571,2517.0,2516.9,10.38412666]
[1749350368824,2.13288761,2517.0,2516.9,10.38412666]
[1749350369193,2.50327373,2517.0,2516.9,10.38412666]
[1749350369394,2.13288761,2517.0,2516.9,10.38412666]
[1749350369808,2.50327683,2517.0,2516.9,10.38412666]
[1749350370213,2.50327683,2517.0,2516.9,10.38414156]
[1749350370525,2.13288761,2517.0,2516.9,10.38414156]
[1749350372547,2.50360861,2517.0,2516.9,10.38414156]
[1749350372736,2.50360668,2517.0,2516.9,10.38414156]
[1749350372908,2.13288761,2517.0,2516.9,10.38414156]
[1749350373509,2.5036098,2517.0,2516.9,10.38414156]
[1749350374022,1.3185799,2517.0,2516.9,10.38414156]
[1749350374329,0.94785771,2517.0,2516.9,10.38414156]
[1749350375448,2.89738354,2517.0,2516.9,10.38414156]
[1749350375789,2.89738597,2517.0,2516.9,10.38414156]
[1749350376029,2.89738281,2517.0,2516.9,10.38414156]
[1749350376237,2.52629771,2517.0,2516.9,10.38414156]
[1749350377001,2.89739128,2517.0,2516.9,10.38414156]
[1749350377411,2.89739883,2517.0,2516.9,10.38414156]
[1749350377611,2.52629771,2517.0,2516.9,10.38414156]
[1749350377821,2.52851328,2517.0,2516.9,10.38414156]
[1749350378721,2.52851328,2517.0,2516.9,10.38314156]
[1749350378722,2.89960623,2517.0,2516.9,10.38314156]
[1749350379431,2.52851328,2517.0,2516.9,10.38314156]
[1749350379628,2.89961885,2517.0,2516.9,10.38314156]
[1749350379816,2.8996171,2517.0,2516.9,10.38314156]
[1749350379993,2.52851328,2517.0,2516.9,10.38314156]
[1749350380191,2.89961271,2517.0,2516.9,10.38314156]
[1749350381236,2.52851328,2517.0,2516.9,10.38314156]
[1749350381748,2.89962716,2517.0,2516.9,10.38314156]
[1749350382040,2.89962916,2517.0,2516.9,10.38314156]
[1749350382804,2.52851328,2517.0,2516.9,10.38314156]
[1749350383016,0.7952,2516.9,2516.7,3.9734573]
[1749350383218,2.37881516,2516.9,2516.8,10.38329942]
[1749350383534,1.32131064,2516.9,2516.5,4.72]
[1749350383752,1.18770982,2516.6,2516.5,10.38377309]
[1749350383953,1.32130717,2516.6,2516.5,10.38377309]
[1749350384116,1.9547394,2516.6,2516.1,3.97435461]
[1749350384316,2.4322,2516.5,2516.2,6.41]
[1749350384635,2.4322,2516.5,2516.2,3.97421726]
[1749350384809,2.9046228,2516.4,2516.3,3.97404984]
[1749350385014,0.95012372,2516.4,2516.3,3.97404984]
[1749350385410,1.32099624,2516.4,2516.3,3.97404984]
[1749350385649,0.95012372,2516.4,2516.3,3.97404984]
[1749350385852,1.32099757,2516.4,2516.2,10.38513173]
[1749350386054,2.13681704,2516.3,2516.2,10.38513173]
[1749350387576,2.13681704,2516.3,2516.2,3.97413173]
[1749350388166,0.95012372,2516.3,2516.2,3.97413173]
[1749350390197,0.95012372,2516.3,2515.8,5.18399676]
[1749350390198,0.7952,2516.2,2515.8,16.39644739]
[1749350390362,0.95012372,2516.1,2516.0,3.97456279]
[1749350393302,3.61889332,2516.5,2516.4,3.97393101]
[1749350393601,4.5660438,2516.5,2516.4,3.97393101]
[1749350393798,5.82210949,2516.5,2516.4,3.97393101]
[1749350396935,4.5660438,2516.5,2516.4,3.97393101]
[1749350397135,3.7708438,2516.5,2516.4,3.97393101]
[1749350397302,2.58415048,2516.5,2516.4,3.97393101]
[1749350401970,19.76215048,2516.5,2516.4,3.97393101]
[1749350402181,20.9488438,2516.5,2516.4,3.97393101]
[1749350403346,23.27934192,2516.5,2516.4,3.97393101]
[1749350404282,20.94657623,2516.5,2516.4,3.97393101]
[1749350407774,19.76236721,2516.5,2516.4,3.97393101]
[1749350407969,20.94722496,2516.5,2516.4,3.97393101]
[1749350408497,19.76236721,2516.5,2516.4,3.97393101]
[1749350411288,20.13289351,2516.5,2516.4,3.97393101]
[1749350411471,19.76236721,2516.5,2516.4,3.97393101]
[1749350411817,20.94860527,2516.5,2516.4,10.38493101]
[1749350412466,20.13336821,2516.5,2516.4,10.38493101]
[1749350412801,19.76236721,2516.5,2516.4,10.38493101]
[1749350413310,21.71696028,2516.5,2516.4,10.38493101]
[1749350413967,21.34598031,2516.5,2516.4,10.38493101]
[1749350414999,21.71705784,2516.5,2516.4,3.97393101]
[1749350415202,21.71705784,2516.5,2516.4,10.38493101]
[1749350415699,21.71704972,2516.5,2516.4,10.38493101]
[1749350415908,21.71704501,2516.5,2516.4,10.38493101]
[1749350416198,21.717037,2516.5,2516.4,10.38493101]
[1749350416371,21.717037,2516.5,2515.9,5.552]
[1749350416372,24.55472317,2516.5,2515.9,5.552]
[1749350416573,1.1874866,2516.3,2516.2,3.97424688]
[1749350416773,2.13485381,2516.3,2516.2,10.38524688]
[1749350417208,0.94736721,2516.3,2516.2,10.38524688]
[1749350417507,2.13484539,2516.3,2516.2,10.38524688]
[1749350417705,0.94736721,2516.3,2516.2,11.21724688]
[1749350422675,20.3986131,2516.5,2516.2,11.21724688]
[1749350422676,20.00247818,2516.5,2516.2,31.38215537]
[1749350423004,18.815,2516.5,2516.4,19.97393101]
[1749350423209,19.76505669,2516.5,2516.4,26.38493101]
[1749350423577,18.815,2516.5,2516.4,26.38493101]
[1749350434990,1.637,2516.5,2516.4,26.38493101]
[1749350452247,2.58787833,2516.5,2516.4,26.38493101]
[1749350453523,2.58787833,2516.5,2516.4,31.65493101]
[1749350453722,1.637,2516.5,2516.4,36.0303395]
[1749350463859,18.008,2517.5,2517.4,3.97235242]
[1749350464061,20.59304334,2517.5,2517.4,10.38035242]
[1749350465568,20.59304334,2517.5,2517.4,10.7802618]
[1749350466268,19.644,2517.5,2517.4,10.7802618]
[1749350467275,20.59216276,2517.5,2517.4,10.7802618]
[1749350467440,20.59217428,2517.5,2517.4,10.7802618]
[1749350467972,19.644,2517.5,2517.4,10.7802618]
[1749350468140,20.59204221,2517.5,2517.4,10.7802618]
[1749350468539,19.644,2517.5,2517.4,10.7802618]
[1749350469277,18.811,2517.5,2517.4,10.7802618]
[1749350469685,17.175,2517.5,2517.4,10.7802618]
[1749350469837,18.811,2517.5,2517.4,30.94517029]
[1749350470267,18.811,2517.5,2517.4,31.75847029]
[1749350470576,1.636,2517.5,2517.4,31.75847029]
[1749350471265,0.833,2518.2,2518.1,3.97124816]
[1749350471461,0.833,2518.2,2518.1,10.37824816]
[1749350471462,2.469,2518.2,2518.1,10.37824816]
[1749350475730,2.469,2518.2,2518.1,3.97124816]
[1749350475863,2.469,2518.2,2518.1,10.37724816]
[1749350476064,2.469,2518.2,2518.1,3.97124816]
[1749350476579,2.469,2518.2,2518.1,10.37724816]
[1749350478387,18.004,2518.5,2518.4,3.97077509]
[1749350478561,18.004,2518.5,2518.4,10.38077509]
[1749350478562,19.64,2518.5,2518.4,10.38077509]
[1749350479163,19.64,2518.5,2518.4,3.97077509]
[1749350479501,19.64,2518.5,2518.4,10.38077509]
[1749350479700,21.96549085,2518.5,2518.4,10.38077509]
[1749350480502,0.833,2518.4,2518.3,3.97093277]
[1749350481497,0.833,2518.4,2517.4,0.39990938]
[1749350481498,0.833,2518.3,2517.4,0.39990938]
[1749350481689,1.77889968,2518.2,2518.1,3.97123639]
[1749350482694,3.41489968,2518.2,2518.1,3.97123639]
[1749350483065,2.469,2518.2,2518.1,3.97123639]
[1749350483464,3.41489968,2518.2,2518.1,3.97123639]
[1749350483890,2.469,2518.2,2518.1,3.97123639]
[1749350484094,3.41489968,2518.2,2518.1,3.97123639]
[1749350486205,3.75638965,2518.2,2518.1,3.97123639]
[1749350486387,1.77889968,2518.2,2518.1,3.97123639]
[1749350486567,2.58889968,2518.2,2518.1,3.97123639]
[1749350487490,3.42189968,2518.2,2518.1,3.97123639]
[1749350490018,3.42189968,2518.2,2517.8,10.38468196]
[1749350490225,0.94589968,2518.1,2518.0,3.97139644]
[1749350490386,2.12018965,2518.1,2518.0,3.97139644]
[1749350490982,2.07018965,2518.1,2518.0,3.97139644]
[1749350492228,1.72799968,2518.1,2518.0,3.97139644]
[1749350493605,2.09844551,2518.1,2518.0,3.97139644]
[1749350493804,1.72799968,2518.1,2518.0,3.97139644]
[1749350496502,2.09865147,2518.1,2518.0,3.97139644]
[1749350496898,1.72799968,2518.1,2518.0,3.97139644]
[1749350497098,2.09867651,2518.1,2518.0,3.97139644]
[1749350497304,1.72799968,2518.1,2518.0,3.97139644]
[1749350497924,2.91047059,2518.1,2518.0,3.97139644]
[1749350498122,1.72799968,2518.1,2518.0,3.97139644]
[1749350498335,2.91047059,2518.1,2518.0,3.97139644]
[1749350498539,3.28114111,2518.1,2518.0,3.97139644]
[1749350498935,2.91047059,2518.1,2518.0,3.97139644]
[1749350499904,3.28137326,2518.1,2518.0,3.97139644]
[1749350500909,3.28136007,2518.1,2518.0,3.97139644]
[1749350501104,3.28136051,2518.1,2518.0,3.97139644]
[1749350501336,2.91047059,2518.1,2518.0,3.97139644]
[1749350501616,3.28136071,2518.1,2518.0,3.97139644]
[1749350502055,2.91047059,2518.1,2518.0,3.97139644]
[1749350502244,3.28137038,2518.1,2518.0,3.97139644]
[1749350502547,3.28136585,2518.1,2518.0,3.97139644]
[1749350502747,3.28136463,2518.1,2518.0,3.97139644]
[1749350503049,3.28136339,2518.1,2518.0,3.97139644]
[1749350503551,3.28138911,2518.1,2518.0,3.97139644]
[1749350503840,2.91047059,2518.1,2518.0,3.97139644]
[1749350504049,3.28139677,2518.1,2518.0,3.97139644]
[1749350504344,2.91047059,2518.1,2518.0,3.97139644]
[1749350504845,2.44932773,2518.1,2518.0,3.97139644]
[1749350505044,2.5929329,2518.1,2518.0,3.97139644]
[1749350505232,4.15133454,2518.1,2518.0,3.97139644]
[1749350505433,3.78034903,2518.1,2518.0,3.97139644]
[1749350506059,4.15133896,2518.1,2518.0,3.97139644]
[1749350506571,4.15133011,2518.1,2518.0,3.97139644]
[1749350506771,3.78034903,2518.1,2518.0,3.97139644]
[1749350507085,4.15134823,2518.1,2518.0,3.97139644]
[1749350507288,3.78034903,2518.1,2518.0,3.97139644]
[1749350507644,4.15134299,2518.1,2518.0,3.97139644]
[1749350507972,4.15134885,2518.1,2518.0,3.97139644]
[1749350508372,2.5929329,2518.1,2518.0,3.97139644]
[1749350508579,2.96397588,2518.1,2518.0,3.97139644]
[1749350508876,3.78034903,2518.1,2518.0,3.97139644]
[1749350509557,4.15156039,2518.1,2518.0,3.97139644]
[1749350510574,3.78034903,2518.1,2518.0,3.97139644]
[1749350510784,2.5929329,2518.1,2518.0,3.97139644]
[1749350511303,3.78173736,2518.1,2518.0,3.97139644]
[1749350511598,4.15323238,2518.1,2518.0,3.97139644]
[1749350512103,3.78172231,2518.1,2518.0,3.97139644]
[1749350512668,2.5929329,2518.1,2518.0,3.97139644]
[1749350512868,2.96442033,2518.1,2518.0,3.97139644]
[1749350514032,2.96443867,2518.1,2518.0,3.97139644]
[1749350514241,2.5929329,2518.1,2518.0,3.97139644]
[1749350514897,2.96444033,2518.1,2518.0,3.97139644]
[1749350515494,2.96444993,2518.1,2518.0,3.97139644]
[1749350515733,2.5929329,2518.1,2518.0,3.97139644]
[1749350516033,4.15335079,2518.1,2518.0,3.97139644]
[1749350516189,2.5929329,2518.1,2518.0,3.97139644]
[1749350516627,2.96447511,2518.1,2518.0,3.97139644]
[1749350516929,4.15341076,2518.1,2518.0,3.97139644]
[1749350517134,4.15341353,2518.1,2518.0,3.97139644]
[1749350517319,3.78186855,2518.1,2518.0,3.97139644]
[1749350517710,4.15341705,2518.1,2518.0,3.97139644]
[1749350518034,4.15341325,2518.1,2518.0,3.97139644]
[1749350518216,4.15346469,2518.1,2518.0,3.97139644]
[1749350519198,4.15341531,2518.1,2518.0,3.97139644]
[1749350519535,3.78184137,2518.1,2518.0,3.97139644]
[1749350519827,4.1533886,2518.1,2518.0,3.97139644]
[1749350520034,3.78184137,2518.1,2518.0,3.97139644]
[1749350520431,4.15337308,2518.1,2518.0,3.97139644]
[1749350520734,4.1533619,2518.1,2518.0,3.97139644]
[1749350520934,2.01452053,2518.1,2518.0,3.97139644]
[1749350521234,3.78295945,2518.1,2518.0,3.97139644]
[1749350522229,4.15445877,2518.1,2518.0,3.97139644]
[1749350522430,3.78295945,2518.1,2518.0,3.97139644]
[1749350523302,4.15446172,2518.1,2518.0,3.97139644]
[1749350523508,3.78295945,2518.1,2518.0,3.97139644]
[1749350524003,2.59409309,2518.1,2518.0,3.97139644]
[1749350524217,2.96560382,2518.1,2518.0,3.97139644]
[1749350524836,2.59409309,2518.1,2518.0,3.97139644]
[1749350525044,2.96558317,2518.1,2518.0,3.97139644]
[1749350525343,2.59409309,2518.1,2518.0,3.97139644]
[1749350525745,2.59400572,2518.1,2518.0,3.97139644]
[1749350526122,2.96549958,2518.1,2518.0,3.97139644]
[1749350526316,2.96549958,2518.1,2517.9,10.3854578]
[1749350526317,2.59400572,2518.1,2517.9,10.3854578]
[1749350526519,2.59400572,2518.1,2517.7,6.408]
[1749350526520,2.53461882,2518.0,2517.7,6.408]
[1749350526723,1.18867171,2517.8,2517.7,6.408]
[1749350526921,2.51114799,2517.8,2517.7,6.408]
[1749350527444,2.13967743,2517.8,2517.7,10.37987909]
[1749350527812,2.51113905,2517.8,2517.7,3.97187909]
[1749350528141,2.13967743,2517.8,2517.7,10.38087909]
[1749350528346,2.51114033,2517.8,2517.7,10.38087909]
[1749350528524,2.51114146,2517.8,2517.7,10.38087909]
[1749350529131,2.13967743,2517.8,2517.7,10.38087909]
[1749350530245,2.51090874,2517.8,2517.7,10.38087909]
[1749350530549,2.13434143,2517.8,2517.7,10.38087909]
[1749350531115,3.27456761,2517.8,2517.5,3.97213552]
[1749350531459,0.95022438,2517.7,2517.6,10.38003686]
[1749350531666,0.95022438,2517.7,2517.6,11.13063686]
[1749350532458,0.95022438,2517.7,2517.6,10.38003686]
[1749350532832,0.95022438,2517.7,2517.6,11.13063686]
[1749350533015,0.95022438,2517.7,2517.6,27.52253814]
[1749350533219,2.58922438,2517.7,2517.6,31.13744663]
[1749350533451,0.95022438,2517.7,2517.6,31.13744663]
[1749350533760,1.639,2517.7,2517.6,31.13744663]
[1749350534256,2.5889858,2517.7,2517.6,31.13744663]
[1749350534565,1.639,2517.7,2517.6,31.13744663]
[1749350536372,1.639,2517.7,2517.6,35.85744663]
[1749350537967,17.167,2518.2,2518.1,3.97124816]
[1749350538131,19.75564127,2518.2,2518.1,10.38224816]
[1749350538551,20.12665934,2518.2,2518.1,10.38224816]
[1749350539148,18.11664127,2518.2,2518.1,10.38224816]
[1749350539349,20.1266788,2518.2,2518.1,10.38224816]
[1749350539553,19.75564127,2518.2,2518.1,10.38224816]
[1749350539762,20.12667829,2518.2,2518.1,10.38224816]
[1749350539961,19.75564127,2518.2,2518.1,10.38224816]
[1749350540563,20.12667268,2518.2,2518.1,10.38224816]
[1749350540762,20.12665098,2518.2,2518.1,10.38224816]
[1749350541352,20.12666707,2518.2,2518.1,10.38224816]
[1749350541539,20.12666291,2518.2,2518.1,10.38224816]
[1749350541869,20.12666657,2518.2,2518.1,10.38224816]
[1749350542744,19.75564127,2518.2,2518.1,10.38224816]
[1749350543257,19.75564127,2518.2,2518.1,26.38224816]
[1749350544173,18.11664127,2518.2,2518.1,26.38224816]
[1749350544386,3.2226131,2518.8,2518.7,3.97030213]
[1749350544582,2.58855214,2518.8,2518.7,10.39230213]
[1749350544744,2.58855214,2518.8,2518.7,3.97030213]
[1749350544939,2.58855214,2518.8,2518.7,10.39430213]
[1749350547477,1.639,2518.8,2518.7,10.39430213]
[1749350547781,2.58694497,2518.8,2518.7,10.39430213]
[1749350548378,1.639,2518.8,2518.7,10.39430213]
[1749350548545,1.639,2518.8,2518.7,3.97030213]
[1749350548852,1.639,2518.8,2518.7,10.39130213]
[1749350555359,2.4687,2518.8,2518.5,8.6905704]
[1749350555668,0.94610659,2518.7,2518.5,8.69055187]
[1749350555998,2.4687,2518.8,2518.6,3.97037807]
[1749350556205,0.94610824,2518.7,2518.6,3.97037807]
[1749350556959,1.77580824,2518.7,2518.5,4.72]
[1749350557209,0.94613071,2518.6,2518.5,8.6906095]
[1749350557887,0.94625873,2518.6,2518.5,8.6906095]
[1749350558091,1.25415082,2518.7,2518.6,3.97045977]
[1749350558293,2.20042229,2518.7,2518.6,3.97045977]
[1749350559492,1.77597147,2518.7,2518.6,3.97045977]
[1749350559692,3.42097147,2518.7,2518.6,3.97045977]
[1749350560055,2.59127147,2518.7,2518.6,3.97045977]
[1749350560256,2.37839157,2519.3,2518.7,3.97030213]
[1749350560257,0.94627147,2518.8,2518.7,3.97030213]
[1749350560492,2.59127147,2518.8,2518.7,3.97030213]
[1749350563782,2.59222705,2518.8,2518.7,3.97030213]
[1749350564373,3.42192705,2518.8,2518.1,8.69119194]
[1749350564573,0.94722705,2518.7,2518.2,22.421]
[1749350564775,0.94722705,2518.6,2518.4,3.97064629]
[1749350564990,2.4747,2518.8,2518.5,3.97061743]
[1749350565266,0.94731254,2518.7,2518.5,3.97061743]
[1749350565462,1.77701254,2518.6,2518.1,8.6911256]
[1749350565662,0.94731254,2518.5,2518.4,3.97077509]
[1749350566304,0.8297,2518.4,2518.3,3.9708751]
[1749350566468,1.99263346,2518.4,2518.2,3.97098129]
[1749350566783,18.10931254,2518.3,2518.2,3.97109046]
[1749350571211,18.47951171,2518.3,2518.2,3.97109046]
[1749350571417,0.8297,2518.1,2517.7,3.97184906]
[1749350571620,2.59231254,2518.0,2517.7,3.97184046]
[1749350571826,2.14712118,2517.9,2517.7,3.97184046]
[1749350572110,0.8297,2517.9,2517.8,6.428]
[1749350572311,1.77679731,2517.9,2517.8,10.39972134]
[1749350573288,2.14700323,2517.9,2517.8,10.39972134]
[1749350573624,2.14700323,2517.9,2517.8,6.428]
[1749350573773,1.77679731,2517.9,2517.8,6.428]
[1749350573972,2.59209731,2517.9,2517.8,10.39972134]
[1749350578776,0.94709731,2517.9,2517.8,10.61285234]
[1749350579086,1.647,2518.0,2517.9,3.9715636]
[1749350581064,17.162,2518.3,2518.2,3.97109046]
[1749350581330,18.809,2518.3,2518.2,10.39709046]
[1749350581488,19.7542349,2518.3,2518.2,10.39709046]
[1749350592861,2.5922349,2518.3,2518.2,10.39709046]
[1749350593424,0.765,2518.2,2518.0,3.97138778]
[1749350593672,0.765,2518.2,2518.1,6.419]
[1749350593841,1.71241208,2518.2,2518.1,6.419]
[1749350594018,2.89556278,2518.2,2518.1,6.419]
[1749350594223,2.89556278,2518.2,2518.1,10.39024816]
[1749350594420,3.55742172,2518.2,2518.1,10.39024816]
[1749350594942,3.92760026,2518.2,2518.1,10.39024816]
[1749350595138,3.92760026,2518.2,2518.1,3.97124816]
[1749350595338,3.92760026,2518.2,2518.1,10.39224816]
[1749350595569,3.55742172,2518.2,2518.1,10.39224816]
[1749350595769,3.92759802,2518.2,2518.1,10.39224816]
[1749350595939,3.55742172,2518.2,2518.1,10.39224816]
[1749350596421,3.92760073,2518.2,2518.1,10.39224816]
[1749350597863,3.55742172,2518.2,2518.1,10.39224816]
[1749350598452,3.92765738,2518.2,2518.1,10.39224816]
[1749350599461,2.082707,2518.2,2518.1,10.39224816]
[1749350599629,2.89556278,2518.2,2518.1,10.39224816]
[1749350599962,3.26585314,2518.2,2518.1,10.39224816]
[1749350600126,1.71241208,2518.2,2518.1,10.39224816]
[1749350600326,2.08270556,2518.2,2518.1,10.39224816]
[1749350600527,3.26585626,2518.2,2518.1,10.39224816]
[1749350601137,3.26589038,2518.2,2518.1,10.39224816]
[1749350601453,2.13056278,2518.2,2518.1,10.39224816]
[1749350602057,2.50088686,2518.2,2518.1,10.39224816]
[1749350602233,2.50088457,2518.2,2518.1,10.39224816]
[1749350602647,3.19977569,2518.2,2517.6,0.8305]
[1749350602848,3.26589069,2518.1,2517.9,3.97148571]
[1749350603039,0.94741208,2518.0,2517.9,3.97148571]
[1749350603240,0.94741208,2518.0,2517.9,10.38948571]
[1749350603435,1.31772352,2518.0,2517.9,10.38948571]
[1749350603738,1.50174311,2518.0,2517.9,3.9715636]
[1749350603932,3.05534232,2518.0,2517.9,10.3895636]
[1749350604131,3.05534232,2518.0,2517.9,6.418]
[1749350604333,3.05905907,2518.0,2517.9,10.3895636]
[1749350604531,2.50472804,2518.0,2517.9,10.3895636]
[1749350604745,2.13427953,2518.0,2517.9,10.3895636]